[Event "EYCC Open-U10 2019"]
[Site "Bratislava"]
[Date "2019.08.07"]
[Round "6.38"]
[White "Koblov, Egor"]
[Black "Sauer, Tim"]
[Result "0-1"]
[ECO "B15"]
[WhiteElo "1312"]
[BlackElo "1635"]
[Annotator "NA"]
[PlyCount "80"]
[EventDate "2019.08.02"]
[EventType "swiss"]
[EventCountry "SVK"]
[SourceTitle "playchess.com"]
[Source "ChessBase"]
[SourceQuality "1"]
[TimeControl "40/5400+30:1800+30"]

1. e4 {[%emt 0:00:00]} c6 {[%emt 0:00:00]} 2. d4 {[%emt 0:00:00]} d5 {[%emt 0:00:00]} 3. Nd2 {[%emt 0:00:00]} dxe4 {[%emt 0:00:00]} 4. Nxe4 {[%emt 0:00:00]} Nf6 {[%emt 0:00:01]} 5. Nxf6+ {[%emt 0:00:02]} exf6 {[%emt 0:00:08]} 6. Nf3 {[%emt 0:00:43]} Bd6 {[%emt 0:00:13]} 7. Bd3 {[%emt 0:00:40]} O-O {[%emt 0:00:24]} 8. O-O {[%emt 0:00:03]} Re8 {[%emt 0:00:54]} 9. c3 {[%emt 0:00:37]} Bg4 {[%emt 0:02:46]} 10. h3 {[%emt 0:01:22]} Bh5 {[%emt 0:01:16]} 11. Be3 {[%emt 0:01:16]} Nd7 {[%emt 0:01:31]} 12. Re1 {[%emt 0:12:38]} Nb6 {[%emt 0:08:29]} 13. c4 {[%emt 0:04:05]} Nd7 {[%emt 0:13:20]} 14. a3 {[%emt 0:08:04]} a5 {[%emt 0:02:39]} 15. g4 {[%emt 0:03:00]} Bg6 {[%emt 0:00:14]} 16. Bxg6 {[%emt 0:00:08]} hxg6 {[%emt 0:01:00]} 17. Qb3 {[%emt 0:00:38]} b6 {[%emt 0:10:34]} 18. Rad1 {[%emt 0:01:11]} Qc7 {[%emt 0:02:48]} 19. Qd3 {[%emt 0:06:13]} Nf8 {[%emt 0:03:39]} 20. d5 {[%emt 0:03:44]} cxd5 {[%emt 0:01:24]} 21. Qxd5 {[%emt 0:00:12]} Rad8 {[%emt 0:00:13]} 22. Qb5 {[%emt 0:00:17]} Rb8 {[%emt 0:07:23]} 23. Rd3 {[%emt 0:11:49]} Bc5 {[%emt 0:02:52]} 24. Rb3 {[%emt 0:07:05]} Bxe3 {[%emt 0:09:35]} 25. Rbxe3 {[%emt 0:02:05]} Rxe3 {[%emt 0:00:36]} 26. Rxe3 {[%emt 0:00:01]} Ne6 {[%emt 0:00:42]} 27. Qb3 {[%emt 0:12:27]} Qc5 {[%emt 0:01:30]} 28. Qc3 {[%emt 0:02:15]} Nf4 {[%emt 0:09:35]} 29. b4 {[%emt 0:03:56]} axb4 {[%emt 0:04:06]} 30. axb4 {[%emt 0:00:09]} Qd6 {[%emt 0:00:27]} 31. Nd4 {[%emt 0:01:02]} Rd8 {[%emt 0:01:10]} 32. Nb3 {[%emt 0:08:33]} Qd1+ {[%emt 0:05:00]} 33. Qe1 {[%emt 0:06:03]} Nxh3+ {[%emt 0:01:52]} 34. Kf1 {[%emt 0:00:07]} Qxg4 {[%emt 0:00:38]} 35. Nd2 {[%emt 0:02:35]} Nf4 {[%emt 0:06:35]} 36. Rg3 {[%emt 0:01:05]} Qh5 {[%emt 0:02:13]} 37. Nf3 {[%emt 0:01:25]} Rd3 {[%emt 0:01:26]} 38. Nd2 {[%emt 0:01:31]} Qh1+ {[%emt 0:00:12]} 39. Rg1 {[%emt 0:00:15]} Qh3+ {[%emt 0:00:04]} 40. Rg2 {[%emt 0:00:00]} Qxg2# {[%emt 0:00:41]} 0-1

[Event "EYCC Open-U10 2019"]
[Site "Bratislava"]
[Date "2019.08.07"]
[Round "6.39"]
[White "Papaioannou, Dimitrios"]
[Black "Sitnikov, Arseni"]
[Result "1-0"]
[ECO "A34"]
[WhiteElo "1629"]
[BlackElo "1184"]
[Annotator "NA"]
[PlyCount "47"]
[EventDate "2019.08.02"]
[EventType "swiss"]
[EventCountry "SVK"]
[SourceTitle "playchess.com"]
[Source "ChessBase"]
[SourceQuality "1"]
[TimeControl "40/5400+30:1800+30"]

1. c4 {[%emt 0:00:00]} c5 {[%emt 0:00:00]} 2. g3 {[%emt 0:00:00]} Nf6 {[%emt 0:00:00]} 3. Bg2 {[%emt 0:00:00]} d5 {[%emt 0:00:00]} 4. cxd5 {[%emt 0:00:00]} Nxd5 {[%emt 0:00:00]} 5. Nc3 {[%emt 0:00:10]} Nc7 {[%emt 0:00:03]} 6. Nf3 {[%emt 0:00:23]} Nc6 {[%emt 0:00:13]} 7. O-O {[%emt 0:00:13]} e5 {[%emt 0:00:10]} 8. a3 {[%emt 0:00:07]} Be7 {[%emt 0:00:09]} 9. b4 {[%emt 0:00:21]} cxb4 {[%emt 0:00:50]} 10. axb4 {[%emt 0:00:14]} O-O {[%emt 0:05:55]} 11. b5 {[%emt 0:02:36]} Nd4 {[%emt 0:00:55]} 12. Nxe5 {[%emt 0:01:49]} Bf6 {[%emt 0:05:40]} 13. b6 {[%emt 0:06:46]} Bxe5 {[%emt 0:06:06]} 14. bxc7 {[%emt 0:00:47]} Qxc7 {[%emt 0:07:01]} 15. Rb1 {[%emt 0:02:21]} Rb8 {[%emt 0:02:05]} 16. e3 {[%emt 0:05:28]} Nc6 {[%emt 0:01:55]} 17. d4 {[%emt 0:04:02]} Bf6 {[%emt 0:06:37]} 18. Nb5 {[%emt 0:04:02]} Qe7 {[%emt 0:01:29]} 19. Ba3 {[%emt 0:01:14]} Qd7 {[%emt 0:01:42]} 20. Bxf8 {[%emt 0:00:35]} Kxf8 {[%emt 0:00:05]} 21. Nc3 {[%emt 0:02:34]} b6 {[%emt 0:00:25]} 22. Qh5 {[%emt 0:01:20]} Kg8 {[%emt 0:00:19]} 23. Rfc1 {[%emt 0:00:23]} g6 {[%emt 0:00:27]} 24. Qf3 {[%emt 0:00:38]} 1-0

[Event "EYCC Open-U10 2019"]
[Site "Bratislava"]
[Date "2019.08.07"]
[Round "6.40"]
[White "Sowinski, Pawel"]
[Black "Mukhomorov, Dobrynia"]
[Result "1-0"]
[ECO "C02"]
[WhiteElo "1644"]
[BlackElo "1206"]
[Annotator "NA"]
[PlyCount "67"]
[EventDate "2019.08.02"]
[EventType "swiss"]
[EventCountry "SVK"]
[SourceTitle "playchess.com"]
[Source "ChessBase"]
[SourceQuality "1"]
[TimeControl "40/5400+30:1800+30"]

1. e4 {[%emt 0:00:00]} e6 {[%emt 0:00:00]} 2. d4 {[%emt 0:00:00]} d5 {[%emt 0:00:00]} 3. e5 {[%emt 0:00:02]} c5 {[%emt 0:00:00]} 4. Nf3 {[%emt 0:00:08]} Qb6 {[%emt 0:00:08]} 5. Bd3 {[%emt 0:00:41]} cxd4 {[%emt 0:00:52]} 6. O-O {[%emt 0:00:11]} Nc6 {[%emt 0:00:25]} 7. Nbd2 {[%emt 0:00:21]} Bd7 {[%emt 0:00:54]} 8. Nb3 {[%emt 0:00:21]} Nge7 {[%emt 0:00:44]} 9. Bf4 {[%emt 0:01:26]} g6 {[%emt 0:01:03]} 10. Qd2 {[%emt 0:01:16]} Bg7 {[%emt 0:01:12]} 11. Rfe1 {[%emt 0:01:06]} Rc8 {[%emt 0:00:51]} 12. a3 {[%emt 0:00:58]} a5 {[%emt 0:02:02]} 13. Bf1 {[%emt 0:00:48]} Nf5 {[%emt 0:03:59]} 14. g4 {[%emt 0:01:31]} a4 {[%emt 0:04:32]} 15. gxf5 {[%emt 0:07:54]} axb3 {[%emt 0:00:18]} 16. f6 {[%emt 0:01:59]} Bf8 {[%emt 0:01:11]} 17. Bh6 {[%emt 0:05:15]} bxc2 {[%emt 0:02:08]} 18. Bg7 {[%emt 0:00:35]} Bxg7 {[%emt 0:03:01]} 19. fxg7 {[%emt 0:00:11]} Rg8 {[%emt 0:00:11]} 20. Qh6 {[%emt 0:00:28]} Ne7 {[%emt 0:01:06]} 21. Bd3 {[%emt 0:16:10]} Bb5 {[%emt 0:03:21]} 22. Ng5 {[%emt 0:15:03]} Bxd3 {[%emt 0:00:44]} 23. Nxh7 {[%emt 0:00:11]} Nf5 {[%emt 0:00:39]} 24. Nf6+ {[%emt 0:00:18]} Ke7 {[%emt 0:00:09]} 25. Qg5 {[%emt 0:00:37]} Qc7 {[%emt 0:05:15]} 26. Nxd5+ {[%emt 0:00:59]} Kd7 {[%emt 0:00:21]} 27. Nxc7 {[%emt 0:00:11]} Rxc7 {[%emt 0:00:08]} 28. Qd2 {[%emt 0:00:16]} Ba6 {[%emt 0:00:26]} 29. Re4 {[%emt 0:01:34]} Rxg7 {[%emt 0:00:54]} 30. Rxd4+ {[%emt 0:00:38]} Nxd4 {[%emt 0:00:33]} 31. Qxd4+ {[%emt 0:00:11]} Kc8 {[%emt 0:01:15]} 32. Rc1 {[%emt 0:00:23]} f6 {[%emt 0:07:16]} 33. Qa4 {[%emt 0:01:04]} Bc4 {[%emt 0:05:04]} 34. Qe8# {[%emt 0:01:57]} 1-0

[Event "EYCC Open-U10 2019"]
[Site "Bratislava"]
[Date "2019.08.07"]
[Round "6.41"]
[White "Tichy, Tomas"]
[Black "Haubold, Sebastian Marcel"]
[Result "0-1"]
[ECO "C22"]
[WhiteElo "1810"]
[BlackElo "1455"]
[Annotator "NA"]
[PlyCount "44"]
[EventDate "2019.08.02"]
[EventType "swiss"]
[EventCountry "SVK"]
[SourceTitle "playchess.com"]
[Source "ChessBase"]
[SourceQuality "1"]
[TimeControl "40/5400+30:1800+30"]

1. e4 {[%emt 0:00:00]} e5 {[%emt 0:00:00]} 2. d4 {[%emt 0:00:00]} exd4 {[%emt 0:01:23]} 3. Qxd4 {[%emt 0:00:10]} Nc6 {[%emt 0:01:14]} 4. Qe3 {[%emt 0:00:15]} d6 {[%emt 0:01:38]} 5. Nc3 {[%emt 0:00:24]} Nf6 {[%emt 0:01:58]} 6. Bd2 {[%emt 0:00:55]} Be6 {[%emt 0:08:27]} 7. O-O-O {[%emt 0:02:34]} Be7 {[%emt 0:04:01]} 8. h3 {[%emt 0:04:25]} O-O {[%emt 0:07:18]} 9. f4 {[%emt 0:03:43]} d5 {[%emt 0:10:46]} 10. exd5 {[%emt 0:09:47]} Nxd5 {[%emt 0:00:17]} 11. Nxd5 {[%emt 0:00:10]} Qxd5 {[%emt 0:00:23]} 12. a3 {[%emt 0:12:32]} Rad8 {[%emt 0:06:28]} 13. Bd3 {[%emt 0:16:55]} Bf6 {[%emt 0:13:09]} 14. Bc3 {[%emt 0:09:50]} Bf5 {[%emt 0:16:22]} 15. Bxf6 {[%emt 0:09:41]} gxf6 {[%emt 0:02:58]} 16. Kb1 {[%emt 0:09:10]} Bxd3 {[%emt 0:01:38]} 17. cxd3 {[%emt 0:04:21]} Qb3 {[%emt 0:02:03]} 18. Nf3 {[%emt 0:02:57]} Rfe8 {[%emt 0:02:26]} 19. Qd2 {[%emt 0:01:51]} Re6 {[%emt 0:06:44]} 20. Rhf1 {[%emt 0:05:07]} Red6 {[%emt 0:02:56]} 21. Ne1 {[%emt 0:01:38]} Nd4 {[%emt 0:00:13]} 22. Qc3 {[%emt 0:01:12]} Qxd1+ {[%emt 0:00:13]} 0-1

[Event "EYCC Open-U10 2019"]
[Site "Bratislava"]
[Date "2019.08.07"]
[Round "6.42"]
[White "Sazonov, Fedor"]
[Black "La Barbera, Manfredi"]
[Result "0-1"]
[ECO "D53"]
[WhiteElo "1280"]
[BlackElo "1479"]
[Annotator "NA"]
[PlyCount "64"]
[EventDate "2019.08.02"]
[EventType "swiss"]
[EventCountry "SVK"]
[SourceTitle "playchess.com"]
[Source "ChessBase"]
[SourceQuality "1"]
[TimeControl "40/5400+30:1800+30"]

1. d4 {[%emt 0:00:00]} d5 {[%emt 0:00:00]} 2. c4 {[%emt 0:00:00]} e6 {[%emt 0:00:00]} 3. Nc3 {[%emt 0:00:00]} Nf6 {[%emt 0:00:00]} 4. Bg5 {[%emt 0:00:20]} Be7 {[%emt 0:00:00]} 5. Nf3 {[%emt 0:00:29]} Nbd7 {[%emt 0:00:00]} 6. e3 {[%emt 0:00:55]} b6 {[%emt 0:00:06]} 7. Bd3 {[%emt 0:00:56]} Bb7 {[%emt 0:00:35]} 8. O-O {[%emt 0:02:38]} O-O {[%emt 0:00:13]} 9. cxd5 {[%emt 0:01:33]} exd5 {[%emt 0:05:49]} 10. Qc2 {[%emt 0:09:14]} h6 {[%emt 0:00:17]} 11. Bxf6 {[%emt 0:02:58]} Nxf6 {[%emt 0:00:18]} 12. Rfd1 {[%emt 0:12:37]} Rc8 {[%emt 0:06:44]} 13. Qa4 {[%emt 0:04:32]} c5 {[%emt 0:08:42]} 14. dxc5 {[%emt 0:03:08]} Bxc5 {[%emt 0:01:08]} 15. Bc4 {[%emt 0:06:48]} Bc6 {[%emt 0:06:05]} 16. Qc2 {[%emt 0:04:06]} Qd7 {[%emt 0:02:37]} 17. Ne5 {[%emt 0:02:57]} Qc7 {[%emt 0:08:20]} 18. Nxc6 {[%emt 0:04:29]} dxc4 {[%emt 0:00:09]} 19. Nd4 {[%emt 0:00:39]} Rfd8 {[%emt 0:03:00]} 20. Ndb5 {[%emt 0:04:33]} Qe7 21. Qa4 {[%emt 0:08:35]} Ng4 {[%emt 0:26:06]} 22. Rxd8+ {[%emt 0:05:31]} Rxd8 {[%emt 0:00:20]} 23. Qxc4 {[%emt 0:01:24]} Qh4 {[%emt 0:04:02]} 24. h3 {[%emt 0:02:36]} Qxf2+ {[%emt 0:01:15]} 25. Kh1 {[%emt 0:00:23]} Nxe3 {[%emt 0:00:03]} 26. Qe2 {[%emt 0:01:36]} Qxe2 {[%emt 0:01:00]} 27. Nxe2 {[%emt 0:00:14]} Rd2 {[%emt 0:00:07]} 28. Nec3 {[%emt 0:01:46]} a6 {[%emt 0:00:41]} 29. Ne4 {[%emt 0:00:52]} Rxb2 {[%emt 0:00:13]} 30. Nc7 {[%emt 0:00:42]} a5 {[%emt 0:00:51]} 31. g4 {[%emt 0:00:36]} Bd4 {[%emt 0:01:01]} 32. Rd1 {[%emt 0:02:25]} Nxd1 {[%emt 0:00:52]} 0-1

[Event "EYCC Open-U10 2019"]
[Site "Bratislava"]
[Date "2019.08.07"]
[Round "6.43"]
[White "Butolo, Alexandru-Mircea"]
[Black "Cruceru-Uceanu, Tudor-Mihai"]
[Result "1/2-1/2"]
[ECO "A13"]
[WhiteElo "1593"]
[BlackElo "1234"]
[Annotator "NA"]
[PlyCount "67"]
[EventDate "2019.08.02"]
[EventType "swiss"]
[EventCountry "SVK"]
[SourceTitle "playchess.com"]
[Source "ChessBase"]
[SourceQuality "1"]
[TimeControl "40/5400+30:1800+30"]

1. c4 e6 2. g3 Nf6 3. Bg2 d5 4. Nf3 c6 5. b3 Bd6 6. Bb2 Nbd7 7. d4 Ne4 8. O-O O-O 9. Nbd2 f5 10. Ne5 Nxe5 11. dxe5 Bc5 12. Nxe4 fxe4 13. Bd4 Bxd4 14. Qxd4 b6 15. Rfd1 Bb7 16. c5 bxc5 17. Qxc5 Qb6 18. Qxb6 axb6 19. Bh3 Kf7 20. f3 exf3 21. exf3 Ke7 22. f4 c5 23. Bg2 Ba6 24. Rd2 Rab8 25. a4 Rfc8 26. f5 d4 27. g4 Bb7 28. a5 Bxg2 29. Kxg2 bxa5 30. Rxa5 Rc7 31. Ra3 Rcb7 32. Rd3 Rb6 33. Kf3 R8b7 34. Ke4 1/2-1/2

[Event "EYCC Open-U10 2019"]
[Site "Bratislava"]
[Date "2019.08.07"]
[Round "6.44"]
[White "Dotzer, Lukas"]
[Black "Tran, Sixten"]
[Result "1/2-1/2"]
[ECO "B35"]
[WhiteElo "1070"]
[BlackElo "1516"]
[Annotator "NA"]
[PlyCount "64"]
[EventDate "2019.08.02"]
[EventType "swiss"]
[EventCountry "SVK"]
[SourceTitle "playchess.com"]
[Source "ChessBase"]
[SourceQuality "1"]
[TimeControl "40/5400+30:1800+30"]

1. e4 {[%emt 0:00:00]} c5 {[%emt 0:00:00]} 2. Nf3 {[%emt 0:00:00]} g6 {[%emt 0:00:00]} 3. d4 {[%emt 0:00:00]} cxd4 {[%emt 0:00:06]} 4. Nxd4 {[%emt 0:00:14]} Nc6 {[%emt 0:00:21]} 5. Nc3 {[%emt 0:00:27]} Bg7 {[%emt 0:00:07]} 6. Be3 {[%emt 0:00:37]} Nf6 {[%emt 0:00:15]} 7. Bc4 {[%emt 0:01:23]} O-O {[%emt 0:01:47]} 8. Bb3 {[%emt 0:01:02]} Ng4 {[%emt 0:31:39]} 9. Nxc6 {[%emt 0:05:08]} Nxe3 {[%emt 0:01:29]} 10. Nxd8 {[%emt 0:02:11]} Nxd1 {[%emt 0:00:11]} 11. Rxd1 {[%emt 0:02:12]} Rxd8 {[%emt 0:03:09]} 12. O-O {[%emt 0:01:40]} e6 {[%emt 0:06:42]} 13. f4 {[%emt 0:03:01]} b6 {[%emt 0:04:31]} 14. e5 {[%emt 0:05:21]} Bb7 {[%emt 0:07:26]} 15. Ba4 {[%emt 0:09:31]} Bc6 {[%emt 0:00:24]} 16. Bxc6 {[%emt 0:02:33]} dxc6 {[%emt 0:00:10]} 17. Ne4 {[%emt 0:01:32]} Rab8 {[%emt 0:04:19]} 18. Nd6 {[%emt 0:03:11]} Bf8 {[%emt 0:02:33]} 19. Ne4 {[%emt 0:10:36]} Be7 {[%emt 0:02:11]} 20. c4 {[%emt 0:01:26]} a5 {[%emt 0:06:23]} 21. Nd6 {[%emt 0:08:34]} Bxd6 {[%emt 0:09:59]} 22. Rxd6 {[%emt 0:05:29]} Rxd6 {[%emt 0:00:21]} 23. exd6 {[%emt 0:00:20]} Rd8 {[%emt 0:00:30]} 24. Rd1 {[%emt 0:01:41]} Kf8 {[%emt 0:00:31]} 25. Rd3 {[%emt 0:02:06]} c5 {[%emt 0:03:00]} 26. d7 {[%emt 0:00:47]} Ke7 {[%emt 0:00:20]} 27. Rb3 {[%emt 0:00:27]} Rb8 {[%emt 0:01:15]} 28. Rd3 {[%emt 0:00:25]} Kd8 {[%emt 0:00:27]} 29. Rh3 {[%emt 0:00:56]} h5 {[%emt 0:00:51]} 30. g4 {[%emt 0:00:07]} Kxd7 {[%emt 0:00:21]} 31. gxh5 {[%emt 0:00:20]} Rh8 {[%emt 0:02:14]} 32. hxg6 {[%emt 0:01:39]} Rg8 {[%emt 0:01:28]} 1/2-1/2

[Event "EYCC Open-U10 2019"]
[Site "Bratislava"]
[Date "2019.08.07"]
[Round "6.45"]
[White "Batozhargalov, Erdem"]
[Black "Foldes, Marton Gabor"]
[Result "1-0"]
[ECO "B21"]
[WhiteElo "1080"]
[BlackElo "1803"]
[Annotator "NA"]
[PlyCount "171"]
[EventDate "2019.08.02"]
[EventType "swiss"]
[EventCountry "SVK"]
[SourceTitle "playchess.com"]
[Source "ChessBase"]
[SourceQuality "1"]
[TimeControl "40/5400+30:1800+30"]

1. e4 {[%emt 0:00:00]} c5 {[%emt 0:00:00]} 2. d4 {[%emt 0:00:00]} cxd4 {[%emt 0:00:00]} 3. c3 {[%emt 0:00:00]} Nf6 {[%emt 0:00:00]} 4. e5 {[%emt 0:00:00]} Nd5 {[%emt 0:00:04]} 5. Nf3 {[%emt 0:00:03]} e6 {[%emt 0:01:00]} 6. Bc4 {[%emt 0:01:52]} Nb6 {[%emt 0:00:29]} 7. Bb3 {[%emt 0:00:19]} Nc6 {[%emt 0:01:36]} 8. O-O {[%emt 0:01:29]} d6 {[%emt 0:01:54]} 9. cxd4 {[%emt 0:09:37]} Qc7 {[%emt 0:02:49]} 10. Bf4 {[%emt 0:03:20]} Be7 {[%emt 0:05:20]} 11. Nc3 {[%emt 0:00:13]} d5 {[%emt 0:07:12]} 12. Rc1 {[%emt 0:03:04]} a6 {[%emt 0:07:03]} 13. Qe2 {[%emt 0:00:23]} O-O {[%emt 0:01:22]} 14. Rfd1 {[%emt 0:00:36]} Qd8 {[%emt 0:06:54]} 15. h3 {[%emt 0:20:19]} Bd7 {[%emt 0:09:03]} 16. Nh2 {[%emt 0:05:09]} f6 {[%emt 0:17:06]} 17. Ng4 {[%emt 0:04:06]} fxe5 {[%emt 0:03:56]} 18. Bxe5 {[%emt 0:00:33]} Bg5 {[%emt 0:01:46]} 19. Rb1 {[%emt 0:04:20]} Ne7 {[%emt 0:05:47]} 20. Bd6 {[%emt 0:02:05]} Nbc8 {[%emt 0:04:39]} 21. Be5 {[%emt 0:06:46]} Ng6 {[%emt 0:05:53]} 22. g3 {[%emt 0:00:40]} b5 {[%emt 0:03:52]} 23. f4 {[%emt 0:04:52]} Be7 {[%emt 0:00:59]} 24. Nxd5 {[%emt 0:01:04]} Kh8 {[%emt 0:05:45]} 25. Nxe7 {[%emt 0:00:12]} Ncxe7 {[%emt 0:00:33]} 26. Bd6 {[%emt 0:00:22]} Qb6 {[%emt 0:01:34]} 27. Bc5 {[%emt 0:02:32]} Qc6 {[%emt 0:01:22]} 28. Rbc1 {[%emt 0:00:27]} Qb7 {[%emt 0:01:47]} 29. Ne5 {[%emt 0:01:07]} Nxe5 {[%emt 0:02:01]} 30. Qxe5 {[%emt 0:05:15]} Rf5 {[%emt 0:01:45]} 31. Qe2 {[%emt 0:03:47]} Nd5 {[%emt 0:00:11]} 32. Bd6 {[%emt 0:05:42]} Re8 {[%emt 0:00:39]} 33. Re1 {[%emt 0:01:15]} Rf6 {[%emt 0:00:50]} 34. Be5 {[%emt 0:02:10]} Rf7 {[%emt 0:00:35]} 35. Bc2 {[%emt 0:00:40]} Kg8 {[%emt 0:00:22]} 36. Be4 {[%emt 0:09:15]} Bc6 {[%emt 0:00:32]} 37. Qc2 {[%emt 0:00:05]} Rc8 {[%emt 0:00:18]} 38. Bxh7+ {[%emt 0:01:35]} Kh8 {[%emt 0:00:38]} 39. Be4 {[%emt 0:00:24]} Kg8 {[%emt 0:00:44]} 40. Qe2 {[%emt 0:00:00]} Nf6 {[%emt 0:00:00]} 41. Bxc6 {[%emt 0:03:31]} Rxc6 42. Rxc6 {[%emt 0:01:02]} Qxc6 {[%emt 0:00:58]} 43. Bxf6 {[%emt 0:00:07]} Rxf6 {[%emt 0:00:18]} 44. Qe4 {[%emt 0:01:36]} Qc4 {[%emt 0:01:33]} 45. b3 {[%emt 0:01:45]} Qc3 {[%emt 0:00:38]} 46. Qe3 {[%emt 0:03:44]} Qc6 {[%emt 0:05:11]} 47. Rc1 {[%emt 0:04:30]} Qb7 {[%emt 0:05:43]} 48. Kf2 {[%emt 0:02:25]} b4 {[%emt 0:09:48]} 49. Qf3 {[%emt 0:04:06]} Qb5 {[%emt 0:01:20]} 50. Rc5 {[%emt 0:02:23]} Qd7 {[%emt 0:00:55]} 51. Qe3 {[%emt 0:01:52]} Qb7 {[%emt 0:01:37]} 52. Qf3 {[%emt 0:00:46]} Qd7 {[%emt 0:00:50]} 53. Rc4 {[%emt 0:01:39]} Qb5 {[%emt 0:02:53]} 54. Qc6 {[%emt 0:00:18]} Qa5 {[%emt 0:00:36]} 55. Qa4 {[%emt 0:01:58]} Qh5 {[%emt 0:02:04]} 56. h4 {[%emt 0:02:45]} Qf5 {[%emt 0:03:40]} 57. Qxb4 {[%emt 0:00:23]} Qh3 {[%emt 0:00:19]} 58. Qb7 {[%emt 0:00:51]} Qf5 {[%emt 0:00:41]} 59. Qf3 {[%emt 0:01:16]} Qa5 {[%emt 0:00:18]} 60. Qe2 {[%emt 0:00:42]} Qf5 {[%emt 0:00:39]} 61. Rc5 {[%emt 0:00:21]} Qg6 {[%emt 0:00:55]} 62. Qh5 {[%emt 0:00:22]} Qd3 {[%emt 0:00:40]} 63. Rc8+ {[%emt 0:02:01]} Rf8 {[%emt 0:00:03]} 64. Rxf8+ {[%emt 0:00:08]} Kxf8 {[%emt 0:00:01]} 65. Qe5 {[%emt 0:01:10]} Qd2+ {[%emt 0:00:18]} 66. Qe2 {[%emt 0:00:19]} Qxd4+ {[%emt 0:00:04]} 67. Kg2 {[%emt 0:00:47]} Qd5+ {[%emt 0:00:28]} 68. Kh3 {[%emt 0:00:32]} Qh1+ {[%emt 0:00:24]} 69. Kg4 {[%emt 0:00:25]} Qd5 {[%emt 0:00:22]} 70. Qe5 Qd1+ {[%emt 0:00:10]} 71. Kg5 {[%emt 0:00:35]} Qd8+ {[%emt 0:00:02]} 72. Kh5 {[%emt 0:00:34]} Qd1+ {[%emt 0:01:03]} 73. g4 {[%emt 0:00:22]} Qd7 {[%emt 0:00:18]} 74. g5 {[%emt 0:01:08]} Qd1+ {[%emt 0:00:04]} 75. Kg6 {[%emt 0:00:42]} Qd7 {[%emt 0:00:17]} 76. Qb8+ {[%emt 0:00:12]} Ke7 {[%emt 0:00:10]} 77. Kxg7 {[%emt 0:00:16]} Qd4+ {[%emt 0:00:30]} 78. Qe5 {[%emt 0:00:11]} Qd7 {[%emt 0:00:10]} 79. Qf6+ {[%emt 0:00:48]} Kd6+ {[%emt 0:02:42]} 80. Qf7 {[%emt 0:00:25]} Qc6 {[%emt 0:00:38]} 81. h5 {[%emt 0:00:33]} Qc3+ {[%emt 0:00:16]} 82. Kg8 {[%emt 0:00:43]} Kd5 {[%emt 0:01:06]} 83. h6 {[%emt 0:00:40]} Qc8+ {[%emt 0:00:31]} 84. Qf8 {[%emt 0:00:07]} Qc2 {[%emt 0:00:23]} 85. Qd8+ {[%emt 0:02:53]} Ke4 {[%emt 0:00:15]} 86. h7 1-0